[Event "Late-Titled-Tuesday-Blitz-May-14-2024"]
[Site "Chess.com"]
[Date "2024.05.14"]
[Round "10"]
[White "OK97"]
[Black "VelandiaSaurio"]
[Result "1/2-1/2"]
[WhiteElo "2854"]
[BlackElo "2640"]
[TimeControl "180+1"]
[EndTime "15:55:04 PDT"]
[Termination "Game drawn - insufficient material"]

1. d4 {[%clk 0:03:00.9]} 1... d5 {[%clk 0:02:59.9]} 2. Nf3 {[%clk 0:03:00.4]}
2... c6 {[%clk 0:03:00.4]} 3. c4 {[%clk 0:02:59.8]} 3... Nf6 {[%clk 0:03:00.8]}
4. Qb3 {[%clk 0:03:00]} 4... e6 {[%clk 0:03:00.8]} 5. Bg5 {[%clk 0:02:57.1]}
5... Be7 {[%clk 0:02:59.4]} 6. Nc3 {[%clk 0:02:54.8]} 6... Ne4 {[%clk
0:02:59.8]} 7. Bxe7 {[%clk 0:02:50.5]} 7... Qxe7 {[%clk 0:03:00.7]} 8. e3 {[%clk
0:02:50.1]} 8... f5 {[%clk 0:03:00.7]} 9. Be2 {[%clk 0:02:44.2]} 9... O-O {[%clk
0:03:00.4]} 10. O-O {[%clk 0:02:44.3]} 10... Nd7 {[%clk 0:02:59.6]} 11. Rac1
{[%clk 0:02:44.2]} 11... Ndf6 {[%clk 0:02:59.8]} 12. Qc2 {[%clk 0:02:28.6]}
12... Ng4 {[%clk 0:02:55.2]} 13. h3 {[%clk 0:02:23.5]} 13... Nh6 {[%clk
0:02:54.4]} 14. Ne5 {[%clk 0:02:20.5]} 14... Nf7 {[%clk 0:02:53.1]} 15. Nd3
{[%clk 0:02:01.7]} 15... Bd7 {[%clk 0:02:47.7]} 16. Rfd1 {[%clk 0:01:57.7]}
16... dxc4 {[%clk 0:02:41.9]} 17. Nc5 {[%clk 0:01:30.6]} 17... Nxc5 {[%clk
0:02:38.6]} 18. dxc5 {[%clk 0:01:31.5]} 18... e5 {[%clk 0:02:36.9]} 19. Bxc4
{[%clk 0:01:29.4]} 19... Be6 {[%clk 0:02:37.5]} 20. Qb3 {[%clk 0:01:23.3]} 20...
Bxc4 {[%clk 0:02:34.6]} 21. Qxc4 {[%clk 0:01:24.2]} 21... Rad8 {[%clk
0:02:33.7]} 22. b4 {[%clk 0:01:18.2]} 22... h6 {[%clk 0:02:27.9]} 23. a4 {[%clk
0:01:01.7]} 23... g5 {[%clk 0:02:25.7]} 24. b5 {[%clk 0:00:58.1]} 24... Kg7
{[%clk 0:02:23.4]} 25. bxc6 {[%clk 0:00:57.1]} 25... bxc6 {[%clk 0:02:23]} 26.
Rb1 {[%clk 0:00:52.8]} 26... e4 {[%clk 0:02:19.5]} 27. Ne2 {[%clk 0:00:51]}
27... Ne5 {[%clk 0:02:17.7]} 28. Qc3 {[%clk 0:00:51.4]} 28... Kg6 {[%clk
0:02:17.1]} 29. Nd4 {[%clk 0:00:49.8]} 29... Rd5 {[%clk 0:02:14.8]} 30. Rdc1
{[%clk 0:00:29.3]} 30... Nd3 {[%clk 0:02:13.9]} 31. Rc2 {[%clk 0:00:25.5]} 31...
Rxc5 {[%clk 0:02:11.9]} 32. Qa3 {[%clk 0:00:25.6]} 32... Rf6 {[%clk 0:01:51.1]}
33. Rbc1 {[%clk 0:00:07.8]} 33... Nxc1 {[%clk 0:01:49.6]} 34. Qxc5 {[%clk
0:00:05.1]} 34... Qxc5 {[%clk 0:01:48.4]} 35. Rxc5 {[%clk 0:00:06]} 35... Nd3
{[%clk 0:01:46.6]} 36. Rxc6 {[%clk 0:00:06.6]} 36... f4 {[%clk 0:01:41.4]} 37.
Rxf6+ {[%clk 0:00:05.5]} 37... Kxf6 {[%clk 0:01:42.3]} 38. Nc6 {[%clk 0:00:06]}
38... a6 {[%clk 0:01:39.3]} 39. Nb8 {[%clk 0:00:06.5]} 39... Nc5 {[%clk
0:01:37.2]} 40. Nc6 {[%clk 0:00:05.9]} 40... Nxa4 {[%clk 0:01:36.1]} 41. Kf1
{[%clk 0:00:06.2]} 41... Nc3 {[%clk 0:01:35.5]} 42. Ke1 {[%clk 0:00:06.5]} 42...
Nd5 {[%clk 0:01:34.5]} 43. Kd2 {[%clk 0:00:07.1]} 43... h5 {[%clk 0:01:32.5]}
44. exf4 {[%clk 0:00:07]} 44... gxf4 {[%clk 0:01:32.8]} 45. Kc2 {[%clk
0:00:07.2]} 45... h4 {[%clk 0:01:29.9]} 46. Kd2 {[%clk 0:00:07.5]} 46... Ke6
{[%clk 0:01:28.4]} 47. Nd4+ {[%clk 0:00:08]} 47... Ke5 {[%clk 0:01:28.9]} 48.
Nc6+ {[%clk 0:00:07.9]} 48... Kd6 {[%clk 0:01:29.4]} 49. Nd4 {[%clk 0:00:08.5]}
49... Kc5 {[%clk 0:01:29]} 50. Nf5 {[%clk 0:00:08.9]} 50... a5 {[%clk
0:01:29.7]} 51. Nxh4 {[%clk 0:00:09.2]} 51... a4 {[%clk 0:01:30.3]} 52. Kc2
{[%clk 0:00:07.6]} 52... e3 {[%clk 0:01:28.4]} 53. fxe3 {[%clk 0:00:07.7]} 53...
fxe3 {[%clk 0:01:29.3]} 54. Nf3 {[%clk 0:00:08.1]} 54... Nb4+ {[%clk 0:01:26.1]}
55. Kc3 {[%clk 0:00:05.6]} 55... Nd5+ {[%clk 0:01:03.9]} 56. Kc2 {[%clk
0:00:05.5]} 56... Nf4 {[%clk 0:00:58.1]} 57. h4 {[%clk 0:00:05.9]} 57... e2
{[%clk 0:00:55]} 58. h5 {[%clk 0:00:06.1]} 58... Nxh5 {[%clk 0:00:52.2]} 59. g4
{[%clk 0:00:06.7]} 59... Nf4 {[%clk 0:00:51.2]} 60. g5 {[%clk 0:00:07.2]} 60...
a3 {[%clk 0:00:51.7]} 61. Kb3 {[%clk 0:00:07.2]} 61... Ne6 {[%clk 0:00:39.5]}
62. Kxa3 {[%clk 0:00:02.6]} 62... Nxg5 {[%clk 0:00:39]} 63. Ne1 {[%clk 0:00:03]}
63... Kd4 {[%clk 0:00:38.3]} 64. Kb2 {[%clk 0:00:03.5]} 64... Ke3 {[%clk
0:00:38.6]} 65. Kc2 {[%clk 0:00:03.5]} 65... Nf3 {[%clk 0:00:37.5]} 66. Ng2+
{[%clk 0:00:04.1]} 66... Kf2 {[%clk 0:00:37.6]} 67. Nf4 {[%clk 0:00:04.7]} 67...
Ne5 {[%clk 0:00:36.3]} 68. Nxe2 {[%clk 0:00:04]} 1/2-1/2

[Event "Late-Titled-Tuesday-Blitz-May-14-2024"]
[Site "Chess.com"]
[Date "2024.05.14"]
[Round "10"]
[White "cthulhuuu"]
[Black "ChessSwole"]
[Result "1-0"]
[WhiteElo "2492"]
[BlackElo "2606"]
[TimeControl "180+1"]
[EndTime "15:55:07 PDT"]
[Termination "cthulhuuu won by checkmate"]

1. e4 {[%clk 0:03:00]} 1... c5 {[%clk 0:02:59.9]} 2. Nf3 {[%clk 0:03:00.4]} 2...
e6 {[%clk 0:03:00.4]} 3. d3 {[%clk 0:03:00.6]} 3... Nc6 {[%clk 0:02:59.2]} 4. g3
{[%clk 0:03:00.9]} 4... g6 {[%clk 0:02:59.6]} 5. Bg2 {[%clk 0:03:01.3]} 5... Bg7
{[%clk 0:03:00.2]} 6. O-O {[%clk 0:03:01.9]} 6... d6 {[%clk 0:02:59.9]} 7. c3
{[%clk 0:03:01.8]} 7... Nge7 {[%clk 0:02:59.5]} 8. d4 {[%clk 0:03:02.2]} 8...
cxd4 {[%clk 0:02:58.8]} 9. cxd4 {[%clk 0:03:03.1]} 9... d5 {[%clk 0:02:59.4]}
10. e5 {[%clk 0:03:03.5]} 10... h6 {[%clk 0:02:57.5]} 11. Nc3 {[%clk 0:03:01.8]}
11... Nf5 {[%clk 0:02:53.1]} 12. g4 {[%clk 0:02:19.7]} 12... Nh4 {[%clk
0:02:51.9]} 13. Nxh4 {[%clk 0:02:19.6]} 13... Qxh4 {[%clk 0:02:52.8]} 14. Nb5
{[%clk 0:02:19.6]} 14... O-O {[%clk 0:02:50.9]} 15. Nd6 {[%clk 0:01:43]} 15...
Bd7 {[%clk 0:02:50.3]} 16. Nxb7 {[%clk 0:01:40.1]} 16... h5 {[%clk 0:02:46.1]}
17. Nc5 {[%clk 0:01:31.9]} 17... Bc8 {[%clk 0:02:45.8]} 18. h3 {[%clk
0:01:28.8]} 18... hxg4 {[%clk 0:02:39.9]} 19. hxg4 {[%clk 0:01:28.4]} 19... f5
{[%clk 0:02:22.9]} 20. Bf3 {[%clk 0:01:19.8]} 20... Nxe5 {[%clk 0:02:18.9]} 21.
dxe5 {[%clk 0:01:06.4]} 21... Bxe5 {[%clk 0:02:19.8]} 22. Re1 {[%clk 0:01:01.4]}
22... Qh2+ {[%clk 0:02:19.9]} 23. Kf1 {[%clk 0:01:01]} 23... fxg4 {[%clk
0:02:20.7]} 24. Bg2 {[%clk 0:00:45.4]} 24... g3 {[%clk 0:01:51.4]} 25. f3 {[%clk
0:00:44.8]} 25... Bd6 {[%clk 0:01:44.2]} 26. Nd3 {[%clk 0:00:37.7]} 26... Ba6
{[%clk 0:01:38.9]} 27. Rxe6 {[%clk 0:00:30.9]} 27... Bc5 {[%clk 0:01:24.7]} 28.
Be3 {[%clk 0:00:30.1]} 28... Bxe3 {[%clk 0:01:00.1]} 29. Rxe3 {[%clk 0:00:31]}
29... Rae8 {[%clk 0:00:57.4]} 30. Qe2 {[%clk 0:00:29.7]} 30... Bb5 {[%clk
0:00:52.9]} 31. Rd1 {[%clk 0:00:19.4]} 31... d4 {[%clk 0:00:52]} 32. Re6 {[%clk
0:00:14.1]} 32... Bc4 {[%clk 0:00:47.9]} 33. Rxe8 {[%clk 0:00:13.7]} 33... Rxe8
{[%clk 0:00:40]} 34. Qxe8+ {[%clk 0:00:13.5]} 34... Kg7 {[%clk 0:00:40.9]} 35.
Qe7+ {[%clk 0:00:12.7]} 35... Kh6 {[%clk 0:00:41.4]} 36. Qf8+ {[%clk 0:00:12.6]}
36... Kh7 {[%clk 0:00:41.6]} 37. Qe7+ {[%clk 0:00:10.2]} 37... Kh6 {[%clk
0:00:41.6]} 38. Qf8+ {[%clk 0:00:10]} 38... Kh7 {[%clk 0:00:41.6]} 39. Qf4
{[%clk 0:00:10.1]} 39... Bxa2 {[%clk 0:00:32.4]} 40. Qg4 {[%clk 0:00:08.8]}
40... Kg7 {[%clk 0:00:30.7]} 41. Qd7+ {[%clk 0:00:08.6]} 41... Kg8 {[%clk
0:00:30.7]} 42. Qc8+ {[%clk 0:00:06.9]} 42... Kg7 {[%clk 0:00:30.6]} 43. Qc7+
{[%clk 0:00:06.5]} 43... Kg8 {[%clk 0:00:29.3]} 44. Qb8+ {[%clk 0:00:06.8]}
44... Kg7 {[%clk 0:00:29.3]} 45. Qxa7+ {[%clk 0:00:07.1]} 45... Bf7 {[%clk
0:00:28.4]} 46. Qxd4+ {[%clk 0:00:07.7]} 46... Kg8 {[%clk 0:00:28.2]} 47. Qg4
{[%clk 0:00:08.3]} 47... Qh6 {[%clk 0:00:26.5]} 48. Qc8+ {[%clk 0:00:07.8]}
48... Kg7 {[%clk 0:00:24.6]} 49. Qc3+ {[%clk 0:00:07.9]} 49... Kg8 {[%clk
0:00:24.8]} 50. Qc8+ {[%clk 0:00:08.1]} 50... Kg7 {[%clk 0:00:25.1]} 51. Qh3
{[%clk 0:00:08.7]} 51... Qe3 {[%clk 0:00:25.2]} 52. Qxg3 {[%clk 0:00:08.8]}
52... Bc4 {[%clk 0:00:24.7]} 53. Qc7+ {[%clk 0:00:07.5]} 53... Bf7 {[%clk
0:00:24.7]} 54. Qc3+ {[%clk 0:00:07.9]} 54... Kg8 {[%clk 0:00:24.8]} 55. Ne5
{[%clk 0:00:07.2]} 55... Qh6 {[%clk 0:00:19.7]} 56. Rd8+ {[%clk 0:00:06.9]}
56... Kh7 {[%clk 0:00:19.6]} 57. Nxf7 {[%clk 0:00:06.4]} 57... Qg7 {[%clk
0:00:17.3]} 58. Rh8+ {[%clk 0:00:05.9]} 58... Qxh8 {[%clk 0:00:17.4]} 59. Qxh8#
{[%clk 0:00:06.8]} 1-0

[Event "Late-Titled-Tuesday-Blitz-May-14-2024"]
[Site "Chess.com"]
[Date "2024.05.14"]
[Round "10"]
[White "NajdorfPlayerc5"]
[Black "subham777"]
[Result "1-0"]
[WhiteElo "2417"]
[BlackElo "2520"]
[TimeControl "180+1"]
[EndTime "15:55:07 PDT"]
[Termination "NajdorfPlayerc5 won on time"]

1. e4 {[%clk 0:03:00.9]} 1... e6 {[%clk 0:02:58.9]} 2. d4 {[%clk 0:03:00.3]}
2... d5 {[%clk 0:02:58]} 3. Nc3 {[%clk 0:03:00.7]} 3... Nf6 {[%clk 0:02:52.9]}
4. e5 {[%clk 0:03:00.2]} 4... Nfd7 {[%clk 0:02:52.6]} 5. f4 {[%clk 0:03:00.8]}
5... c5 {[%clk 0:02:50.9]} 6. Nf3 {[%clk 0:03:01.3]} 6... Nc6 {[%clk 0:02:50.4]}
7. Be3 {[%clk 0:03:00.9]} 7... a6 {[%clk 0:02:49.8]} 8. Qd2 {[%clk 0:02:59.9]}
8... Be7 {[%clk 0:02:49.2]} 9. Be2 {[%clk 0:02:50.1]} 9... b5 {[%clk 0:02:48]}
10. Nd1 {[%clk 0:02:38.8]} 10... Qb6 {[%clk 0:02:44.6]} 11. O-O {[%clk
0:02:37.3]} 11... g6 {[%clk 0:02:39.8]} 12. dxc5 {[%clk 0:02:28.2]} 12... Bxc5
{[%clk 0:02:34.7]} 13. c3 {[%clk 0:02:21.9]} 13... Bb7 {[%clk 0:02:28.4]} 14.
Bxc5 {[%clk 0:02:16.7]} 14... Nxc5 {[%clk 0:02:28]} 15. Qe3 {[%clk 0:02:14.4]}
15... h6 {[%clk 0:02:17.2]} 16. Nf2 {[%clk 0:02:11.6]} 16... Ne7 {[%clk
0:02:07.1]} 17. Nd3 {[%clk 0:02:08.7]} 17... Rc8 {[%clk 0:01:54]} 18. Nxc5
{[%clk 0:02:06.4]} 18... Qxc5 {[%clk 0:01:52.9]} 19. Qxc5 {[%clk 0:02:05.6]}
19... Rxc5 {[%clk 0:01:53.3]} 20. Nd4 {[%clk 0:02:04.6]} 20... Kd7 {[%clk
0:01:52]} 21. Kf2 {[%clk 0:02:01]} 21... Rhc8 {[%clk 0:01:47.1]} 22. a4 {[%clk
0:01:59.4]} 22... Nf5 {[%clk 0:01:17.3]} 23. axb5 {[%clk 0:01:53.6]} 23... axb5
{[%clk 0:01:16.8]} 24. Bxb5+ {[%clk 0:01:47.1]} 24... Kc7 {[%clk 0:01:13.7]} 25.
Nxf5 {[%clk 0:01:46]} 25... gxf5 {[%clk 0:01:12]} 26. Bd3 {[%clk 0:01:43.9]}
26... Kb6 {[%clk 0:01:07.4]} 27. Rfc1 {[%clk 0:01:40.7]} 27... d4 {[%clk
0:00:58.8]} 28. c4 {[%clk 0:01:39.5]} 28... Be4 {[%clk 0:00:54]} 29. b4 {[%clk
0:01:35.7]} 29... Bxd3 {[%clk 0:00:48]} 30. bxc5+ {[%clk 0:01:35]} 30... Rxc5
{[%clk 0:00:39.9]} 31. Rd1 {[%clk 0:01:32.5]} 31... Bxc4 {[%clk 0:00:35.8]} 32.
Rxd4 {[%clk 0:01:32.5]} 32... Bd5 {[%clk 0:00:36]} 33. Rb4+ {[%clk 0:01:26.2]}
33... Kc7 {[%clk 0:00:35.3]} 34. Ra7+ {[%clk 0:01:23.4]} 34... Kc8 {[%clk
0:00:35.6]} 35. Rb2 {[%clk 0:01:22.9]} 35... Rc4 {[%clk 0:00:23.8]} 36. g3
{[%clk 0:01:19.4]} 36... Rc1 {[%clk 0:00:17.4]} 37. Rxf7 {[%clk 0:01:15.7]}
37... Rh1 {[%clk 0:00:17.7]} 38. Ke3 {[%clk 0:01:14]} 38... Re1+ {[%clk
0:00:13.9]} 39. Kd4 {[%clk 0:01:12.4]} 39... Rc1 {[%clk 0:00:05.5]} 40. Rh7
{[%clk 0:01:04.5]} 40... h5 {[%clk 0:00:03.3]} 41. Rxh5 {[%clk 0:00:58.7]} 41...
Kd7 {[%clk 0:00:03.6]} 42. Rb6 {[%clk 0:00:44.6]} 42... Rd1+ {[%clk 0:00:02.8]}
43. Ke3 {[%clk 0:00:41.5]} 43... Kc7 {[%clk 0:00:01.4]} 44. Rd6 {[%clk
0:00:39.9]} 44... Re1+ {[%clk 0:00:02]} 45. Kd2 {[%clk 0:00:39.8]} 45... Ra1
{[%clk 0:00:02.8]} 46. Rh7+ {[%clk 0:00:38.8]} 46... Kc8 {[%clk 0:00:03.5]} 47.
h4 {[%clk 0:00:37.1]} 47... Ra2+ {[%clk 0:00:03.8]} 48. Ke3 {[%clk 0:00:35]}
48... Ra3+ {[%clk 0:00:04]} 49. Kd4 {[%clk 0:00:35]} 49... Rxg3 {[%clk 0:00:03]}
50. h5 {[%clk 0:00:35.5]} 50... Rg4 {[%clk 0:00:03.1]} 51. h6 {[%clk 0:00:35.8]}
51... Rxf4+ {[%clk 0:00:03.4]} 52. Kc5 {[%clk 0:00:36]} 52... Rc4+ {[%clk
0:00:03.7]} 53. Kb5 {[%clk 0:00:35.9]} 53... Rh4 {[%clk 0:00:02.1]} 54. Rh8+
{[%clk 0:00:25.6]} 54... Kc7 {[%clk 0:00:02.4]} 55. h7 {[%clk 0:00:23.9]} 55...
f4 {[%clk 0:00:01.1]} 56. Rdd8 {[%clk 0:00:23.4]} 56... Bc6+ {[%clk 0:00:00.8]}
57. Kc5 {[%clk 0:00:22.5]} 1-0

[Event "Late-Titled-Tuesday-Blitz-May-14-2024"]
[Site "Chess.com"]
[Date "2024.05.14"]
[Round "10"]
[White "GelmanAlexander"]
[Black "StoreySniper"]
[Result "0-1"]
[WhiteElo "2686"]
[BlackElo "2566"]
[TimeControl "180+1"]
[EndTime "15:55:08 PDT"]
[Termination "StoreySniper won on time"]

1. c4 {[%clk 0:03:00.9]} 1... g6 {[%clk 0:03:00.2]} 2. Nf3 {[%clk 0:02:59.4]}
2... Bg7 {[%clk 0:03:01.1]} 3. e3 {[%clk 0:02:59]} 3... c5 {[%clk 0:03:01.7]} 4.
d3 {[%clk 0:02:58.8]} 4... e6 {[%clk 0:03:01.6]} 5. Be2 {[%clk 0:02:59.2]} 5...
Ne7 {[%clk 0:03:01.9]} 6. a3 {[%clk 0:02:59.6]} 6... d5 {[%clk 0:03:02.2]} 7.
Nbd2 {[%clk 0:02:58.9]} 7... Nbc6 {[%clk 0:03:02.5]} 8. O-O {[%clk 0:02:56.7]}
8... O-O {[%clk 0:03:02.2]} 9. cxd5 {[%clk 0:02:55.1]} 9... exd5 {[%clk
0:03:00.6]} 10. Re1 {[%clk 0:02:54]} 10... b6 {[%clk 0:03:00.6]} 11. Qc2 {[%clk
0:02:54.4]} 11... Bb7 {[%clk 0:03:00.7]} 12. Nf1 {[%clk 0:02:54.6]} 12... d4
{[%clk 0:02:56.4]} 13. e4 {[%clk 0:02:54.6]} 13... h6 {[%clk 0:02:51.3]} 14. Ng3
{[%clk 0:02:54.7]} 14... a5 {[%clk 0:02:45.6]} 15. Bd2 {[%clk 0:02:54.6]} 15...
Qd6 {[%clk 0:02:45.3]} 16. h4 {[%clk 0:02:52.2]} 16... Rfc8 {[%clk 0:02:42.7]}
17. Rac1 {[%clk 0:02:48.5]} 17... Ne5 {[%clk 0:02:33.8]} 18. Qb3 {[%clk
0:02:09.8]} 18... a4 {[%clk 0:02:29.4]} 19. Qa2 {[%clk 0:02:09.7]} 19... Ba6
{[%clk 0:02:17.9]} 20. Nxe5 {[%clk 0:01:59.5]} 20... Bxe5 {[%clk 0:02:17.9]} 21.
Nf1 {[%clk 0:02:00.4]} 21... Bf4 {[%clk 0:02:11.4]} 22. g3 {[%clk 0:01:53.6]}
22... Bxd2 {[%clk 0:02:10.7]} 23. Nxd2 {[%clk 0:01:54.5]} 23... Nc6 {[%clk
0:02:09.7]} 24. f4 {[%clk 0:01:51.3]} 24... g5 {[%clk 0:02:04.5]} 25. e5 {[%clk
0:01:39.8]} 25... Qg6 {[%clk 0:02:01.1]} 26. hxg5 {[%clk 0:00:51.8]} 26... hxg5
{[%clk 0:02:00.7]} 27. Kf2 {[%clk 0:00:35.4]} 27... Ne7 {[%clk 0:01:56.7]} 28.
Ne4 {[%clk 0:00:32.4]} 28... Kg7 {[%clk 0:01:42.2]} 29. Rh1 {[%clk 0:00:19.9]}
29... Rh8 {[%clk 0:01:38.2]} 30. Nxg5 {[%clk 0:00:16.1]} 30... Bb7 {[%clk
0:01:36.4]} 31. Bf3 {[%clk 0:00:09.5]} 31... Bxf3 {[%clk 0:01:33.6]} 32. Nxf3
{[%clk 0:00:10.4]} 32... Nf5 {[%clk 0:01:32.2]} 33. Ng5 {[%clk 0:00:09.9]} 33...
Nxg3 {[%clk 0:01:30.3]} 34. Kxg3 {[%clk 0:00:09.1]} 34... Qxd3+ {[%clk
0:01:30.4]} 35. Kg4 {[%clk 0:00:09.6]} 35... Qe2+ {[%clk 0:01:26.2]} 36. Kg3
{[%clk 0:00:10.1]} 36... Qe3+ {[%clk 0:01:23]} 37. Kg4 {[%clk 0:00:10.5]} 37...
Qe2+ {[%clk 0:01:22.4]} 38. Kg3 {[%clk 0:00:10.1]} 38... c4 {[%clk 0:01:07.1]}
39. Nf3 {[%clk 0:00:07.1]} 39... Rag8 {[%clk 0:01:02.1]} 40. Rxh8 {[%clk
0:00:05.4]} 40... Kxh8+ {[%clk 0:01:02.3]} 41. Ng5 {[%clk 0:00:04.6]} 41... Qe3+
{[%clk 0:00:58.5]} 42. Kg4 {[%clk 0:00:05.1]} 42... Qxc1 {[%clk 0:00:58.4]} 43.
b4 {[%clk 0:00:05.4]} 43... Qg1+ {[%clk 0:00:52.8]} 44. Kf5 {[%clk 0:00:04.2]}
44... Rxg5+ {[%clk 0:00:43.5]} 45. fxg5 {[%clk 0:00:05.1]} 45... Qf1+ {[%clk
0:00:43]} 46. Ke4 {[%clk 0:00:04.3]} 46... Qd3+ {[%clk 0:00:30.1]} 47. Kd5
{[%clk 0:00:04.8]} 47... Kg7 {[%clk 0:00:26.6]} 48. Qxc4 {[%clk 0:00:03.6]}
48... Qxa3 {[%clk 0:00:16.5]} 49. Qxd4 {[%clk 0:00:03.3]} 49... Qb3+ {[%clk
0:00:16.5]} 50. Kd6 {[%clk 0:00:03.3]} 50... Qe6+ {[%clk 0:00:16.5]} 51. Kc7
{[%clk 0:00:04]} 51... a3 {[%clk 0:00:16.5]} 52. b5 {[%clk 0:00:02.8]} 52... a2
{[%clk 0:00:16.2]} 53. Kb7 {[%clk 0:00:03.3]} 53... Qe7+ {[%clk 0:00:11.9]} 54.
Kxb6 {[%clk 0:00:02]} 54... Qe6+ {[%clk 0:00:08.1]} 55. Ka7 {[%clk 0:00:02.5]}
55... Qb3 {[%clk 0:00:06.2]} 0-1

[Event "Late-Titled-Tuesday-Blitz-May-14-2024"]
[Site "Chess.com"]
[Date "2024.05.14"]
[Round "10"]
[White "manitodeplomo"]
[Black "KNVB"]
[Result "0-1"]
[WhiteElo "2560"]
[BlackElo "2801"]
[TimeControl "180+1"]
[EndTime "15:55:11 PDT"]
[Termination "KNVB won on time"]

1. d4 {[%clk 0:03:00.9]} 1... e5 {[%clk 0:02:42.6]} 2. dxe5 {[%clk 0:03:00]}
2... Nc6 {[%clk 0:02:43]} 3. Nf3 {[%clk 0:03:00.2]} 3... Qe7 {[%clk 0:02:43.3]}
4. Nc3 {[%clk 0:02:59.5]} 4... Nxe5 {[%clk 0:02:43.6]} 5. Nd5 {[%clk 0:03:00.1]}
5... Nxf3+ {[%clk 0:02:43.7]} 6. gxf3 {[%clk 0:03:01]} 6... Qd8 {[%clk
0:02:44.6]} 7. Bf4 {[%clk 0:02:59.4]} 7... d6 {[%clk 0:02:45.5]} 8. Qd4 {[%clk
0:02:59.8]} 8... Nf6 {[%clk 0:02:46.3]} 9. O-O-O {[%clk 0:03:00.1]} 9... Be6
{[%clk 0:02:31.7]} 10. e4 {[%clk 0:02:56.5]} 10... Bxd5 {[%clk 0:01:15.1]} 11.
exd5 {[%clk 0:02:55.2]} 11... Be7 {[%clk 0:01:15.9]} 12. Bb5+ {[%clk 0:02:50.6]}
12... Kf8 {[%clk 0:01:16.4]} 13. Rhg1 {[%clk 0:02:31.1]} 13... Nh5 {[%clk
0:01:12.1]} 14. Be3 {[%clk 0:02:19.6]} 14... Bf6 {[%clk 0:01:11]} 15. Qg4 {[%clk
0:02:11.7]} 15... g6 {[%clk 0:01:01.3]} 16. Bh6+ {[%clk 0:02:09.4]} 16... Ng7
{[%clk 0:00:56.2]} 17. Rde1 {[%clk 0:02:02.3]} 17... Kg8 {[%clk 0:00:56.7]} 18.
Re4 {[%clk 0:01:44.8]} 18... a6 {[%clk 0:00:55.7]} 19. Ba4 {[%clk 0:01:42.7]}
19... b5 {[%clk 0:00:31.3]} 20. Bb3 {[%clk 0:01:41.9]} 20... Bxb2+ {[%clk
0:00:15.7]} 21. Kxb2 {[%clk 0:01:23.5]} 21... f5 {[%clk 0:00:16.6]} 22. Bxg7
{[%clk 0:01:09]} 22... fxg4 {[%clk 0:00:10.2]} 23. Bd4 {[%clk 0:00:44.2]} 23...
Qd7 {[%clk 0:00:02.2]} 24. Rexg4 {[%clk 0:00:27.9]} 24... Rf8 {[%clk 0:00:01.4]}
25. h4 {[%clk 0:00:24.8]} 25... Kf7 {[%clk 0:00:01.7]} 26. h5 {[%clk 0:00:24.5]}
26... Rhg8 {[%clk 0:00:02]} 27. Re1 {[%clk 0:00:21.4]} 27... Re8 {[%clk
0:00:02]} 28. Rf4+ {[%clk 0:00:21]} 28... Qf5 {[%clk 0:00:01.7]} 29. hxg6+
{[%clk 0:00:20.1]} 29... hxg6 {[%clk 0:00:01.8]} 30. Rxf5+ {[%clk 0:00:19.3]}
30... gxf5 {[%clk 0:00:02.7]} 31. Rxe8 {[%clk 0:00:19.3]} 31... Kxe8 {[%clk
0:00:02.9]} 32. a4 {[%clk 0:00:18]} 32... Kd7 {[%clk 0:00:02]} 33. axb5 {[%clk
0:00:17.6]} 33... axb5 {[%clk 0:00:02.9]} 34. Kc3 {[%clk 0:00:17.6]} 34... f4
{[%clk 0:00:02.8]} 35. Kb4 {[%clk 0:00:16.1]} 35... Rg1 {[%clk 0:00:01.1]} 36.
Kxb5 {[%clk 0:00:15]} 36... Rd1 {[%clk 0:00:01.4]} 37. Kc4 {[%clk 0:00:14.6]}
37... Rd2 {[%clk 0:00:02]} 38. Kc3 {[%clk 0:00:14.1]} 38... Rd1 {[%clk
0:00:02.7]} 39. Kc4 {[%clk 0:00:08.5]} 39... Rd2 {[%clk 0:00:02.6]} 40. c3
{[%clk 0:00:07.9]} 40... Ke7 {[%clk 0:00:02.3]} 41. Kb4 {[%clk 0:00:05.2]} 41...
Rb2 {[%clk 0:00:01.9]} 42. c4 {[%clk 0:00:04.3]} 42... Rd2 {[%clk 0:00:01.6]}
43. Kc3 {[%clk 0:00:04.5]} 43... Re2 {[%clk 0:00:02.3]} 44. Bd1 {[%clk
0:00:03.5]} 44... Re1 {[%clk 0:00:02.4]} 45. Kd2 {[%clk 0:00:03.5]} 45... Rh1
{[%clk 0:00:02.4]} 46. Be2 {[%clk 0:00:03.9]} 46... Rh5 {[%clk 0:00:01.6]} 47.
Bd3 {[%clk 0:00:03.8]} 47... Rh4 {[%clk 0:00:01.8]} 48. Be4 {[%clk 0:00:03.8]}
48... Rh2 {[%clk 0:00:02]} 49. Kc3 {[%clk 0:00:03.8]} 49... Rh1 {[%clk
0:00:02.2]} 50. c5 {[%clk 0:00:03.3]} 50... Rg1 {[%clk 0:00:01.3]} 51. c6 {[%clk
0:00:02.1]} 51... Rf1 {[%clk 0:00:01.7]} 52. Kd3 {[%clk 0:00:02.3]} 52... Rd1+
{[%clk 0:00:01.8]} 53. Kc4 {[%clk 0:00:02.1]} 53... Rc1+ {[%clk 0:00:02.3]} 54.
Kb4 {[%clk 0:00:02.2]} 54... Rd1 {[%clk 0:00:02.7]} 0-1